[Event "Titled Tuesday Blitz June 6 Late 2023"]
[White "Srdanovic, Jovana"]
[Black "Stachanczyk, Jacek"]
[WhiteFideId "954810"]
[BlackFideId "1116657"]
[WhiteElo "2155"]
[BlackElo "2084"]
[Result "1-0"]
[Round "9"]
[TimeControl "180+2"]
[Date "2023.06.07"]
[WhiteClock "0:00:02"]
[BlackClock "0:00:03"]
[Board "99"]

1. d4 {[%clk 0:02:40]}  Nf6 {[%clk 0:02:58]} 2. c4 {[%clk 0:02:40]}  g6 {[%clk 0:02:58]} 3. Nc3 {[%clk 0:02:39]}  Bg7 {[%clk 0:02:59]} 4. e4 {[%clk 0:02:38]}  d6 {[%clk 0:02:59]} 5. h3 {[%clk 0:02:39]}  O-O {[%clk 0:02:58]} 6. Be3 {[%clk 0:02:39]}  c5 {[%clk 0:02:57]} 7. d5 {[%clk 0:02:28]}  b5 {[%clk 0:02:52]} 8. cxb5 {[%clk 0:02:27]}  a6 {[%clk 0:02:52]} 9. bxa6 {[%clk 0:02:27]}  Bxa6 {[%clk 0:02:52]} 10. Bxa6 {[%clk 0:02:26]}  Nxa6 {[%clk 0:02:52]} 11. Nge2 {[%clk 0:02:20]}  Qa5 {[%clk 0:02:47]} 12. O-O {[%clk 0:02:18]}  Qb4 {[%clk 0:02:45]} 13. Qc1 {[%clk 0:02:15]}  Nxe4 {[%clk 0:02:40]} 14. a3 {[%clk 0:01:55]}  Nxc3 {[%clk 0:02:39]} 15. Nxc3 {[%clk 0:01:50]}  Qb3 {[%clk 0:02:35]} 16. Rb1 {[%clk 0:01:45]}  Nc7 {[%clk 0:02:33]} 17. Bh6 {[%clk 0:01:30]}  Nxd5 {[%clk 0:02:18]} 18. Bxg7 {[%clk 0:01:29]}  Kxg7 {[%clk 0:02:17]} 19. Nxd5 {[%clk 0:01:25]}  Qxd5 {[%clk 0:02:18]} 20. Qc3+ {[%clk 0:01:24]}  f6 {[%clk 0:02:12]} 21. Rbd1 {[%clk 0:01:24]}  Qe5 {[%clk 0:02:10]} 22. Qc2 {[%clk 0:01:24]}  Ra7 {[%clk 0:01:58]} 23. Rfe1 {[%clk 0:01:24]}  Qf5 {[%clk 0:01:58]} 24. Qc4 {[%clk 0:01:20]}  Rb8 {[%clk 0:01:53]} 25. Rd2 {[%clk 0:01:11]}  Rb6 {[%clk 0:01:42]} 26. Rde2 {[%clk 0:01:09]}  e5 {[%clk 0:01:42]} 27. b4 {[%clk 0:00:57]}  cxb4 {[%clk 0:01:39]} 28. axb4 {[%clk 0:00:58]}  Qd7 {[%clk 0:01:31]} 29. Rd1 {[%clk 0:00:53]}  Rab7 {[%clk 0:01:28]} 30. Qd5 {[%clk 0:00:48]}  Qf7 {[%clk 0:01:16]} 31. Qa5 {[%clk 0:00:37]}  Rb5 {[%clk 0:01:10]} 32. Qa1 {[%clk 0:00:29]}  d5 {[%clk 0:01:09]} 33. Qa2 {[%clk 0:00:27]}  d4 {[%clk 0:01:08]} 34. Qa6 {[%clk 0:00:19]}  Rxb4 {[%clk 0:01:05]} 35. Rc2 {[%clk 0:00:19]}  R4b6 {[%clk 0:00:56]} 36. Qa8 {[%clk 0:00:18]}  Rb1 {[%clk 0:00:55]} 37. Rxb1 {[%clk 0:00:17]}  Rxb1+ {[%clk 0:00:56]} 38. Kh2 {[%clk 0:00:17]}  d3 {[%clk 0:00:47]} 39. Rd2 {[%clk 0:00:11]}  Qd7 {[%clk 0:00:40]} 40. Qe4 {[%clk 0:00:10]}  Rb3 {[%clk 0:00:40]} 41. Qc4 {[%clk 0:00:10]}  Ra3 {[%clk 0:00:31]} 42. Qb4 {[%clk 0:00:10]}  Ra6 {[%clk 0:00:28]} 43. Qc4 {[%clk 0:00:08]}  Rd6 {[%clk 0:00:28]} 44. Qe4 {[%clk 0:00:05]}  Rd4 {[%clk 0:00:27]} 45. Qe3 {[%clk 0:00:05]}  Qd6 {[%clk 0:00:25]} 46. f3 {[%clk 0:00:03]}  e4+ {[%clk 0:00:21]} 47. Kh1 {[%clk 0:00:03]}  exf3 {[%clk 0:00:21]} 48. Qxf3 {[%clk 0:00:04]}  h6 {[%clk 0:00:13]} 49. Qb7+ {[%clk 0:00:05]}  Qd7 {[%clk 0:00:13]} 50. Qf3 {[%clk 0:00:05]}  g5 {[%clk 0:00:12]} 51. Qe3 {[%clk 0:00:06]}  h5 {[%clk 0:00:12]} 52. Qf3 {[%clk 0:00:06]}  g4 {[%clk 0:00:10]} 53. Qe3 {[%clk 0:00:06]}  Qd6 {[%clk 0:00:08]} 54. hxg4 {[%clk 0:00:05]}  hxg4 {[%clk 0:00:07]} 55. Kg1 {[%clk 0:00:03]}  g3 {[%clk 0:00:06]} 56. Qf3 {[%clk 0:00:01]}  Qe5 {[%clk 0:00:03]} 57. Rd1 {[%clk 0:00:02]} 1-0


[Site "https://www.chess.com"]

[Event "Titled Tuesday Blitz June 6 Late 2023"]
[White "Ruiz Aguilar, Pablo Alexander"]
[Black "Araujo Filho, Luiz Antonio Coel"]
[WhiteFideId "4401352"]
[BlackFideId "2130661"]
[WhiteElo "2111"]
[BlackElo "2056"]
[Result "0-1"]
[Round "9"]
[TimeControl "180+2"]
[Date "2023.06.07"]
[WhiteClock "0:02:09"]
[BlackClock "0:02:40"]
[Board "101"]

1. e4 {[%clk 0:02:46]}  c6 {[%clk 0:02:59]} 2. d4 {[%clk 0:02:43]}  d5 {[%clk 0:02:59]} 3. exd5 {[%clk 0:02:39]}  cxd5 {[%clk 0:02:59]} 4. c4 {[%clk 0:02:38]}  Nf6 {[%clk 0:02:59]} 5. Nc3 {[%clk 0:02:36]}  Nc6 {[%clk 0:02:59]} 6. c5 {[%clk 0:02:33]}  e6 {[%clk 0:02:58]} 7. a3 {[%clk 0:02:26]}  Be7 {[%clk 0:02:58]} 8. Bf4 {[%clk 0:02:25]}  O-O {[%clk 0:02:57]} 9. h3 {[%clk 0:02:22]}  Ne4 {[%clk 0:02:56]} 10. Bd3 {[%clk 0:02:19]}  Nxc3 {[%clk 0:02:54]} 11. bxc3 {[%clk 0:02:17]}  Bf6 {[%clk 0:02:50]} 12. Nf3 {[%clk 0:02:15]}  Re8 {[%clk 0:02:50]} 13. O-O {[%clk 0:02:14]}  e5 {[%clk 0:02:48]} 14. Be3 {[%clk 0:02:11]}  e4 {[%clk 0:02:45]} 15. Be2 {[%clk 0:02:10]}  exf3 {[%clk 0:02:44]} 16. Bxf3 {[%clk 0:02:09]}  Bf5 {[%clk 0:02:40]} 0-1


[Site "https://www.chess.com"]

[Event "Titled Tuesday Blitz June 6 Late 2023"]
[White "zano2023"]
[Black "Francisco_Ferrari"]
[WhiteElo "2147"]
[BlackElo "2188"]
[Result "0-1"]
[Round "9"]
[TimeControl "180+2"]
[Date "2023.06.07"]
[WhiteClock "0:00:05"]
[BlackClock "0:00:10"]
[Board "104"]

1. d4 {[%clk 0:03:00]}  d5 {[%clk 0:02:58]} 2. Nf3 {[%clk 0:02:57]}  Nf6 {[%clk 0:02:57]} 3. Nbd2 {[%clk 0:02:57]}  e6 {[%clk 0:02:57]} 4. e3 {[%clk 0:02:58]}  Bd6 {[%clk 0:02:58]} 5. Bd3 {[%clk 0:02:55]}  O-O {[%clk 0:02:58]} 6. O-O {[%clk 0:02:55]}  Nbd7 {[%clk 0:02:54]} 7. e4 {[%clk 0:02:50]}  dxe4 {[%clk 0:02:53]} 8. Nxe4 {[%clk 0:02:51]}  Nxe4 {[%clk 0:02:54]} 9. Bxe4 {[%clk 0:02:52]}  Nf6 {[%clk 0:02:54]} 10. Bd3 {[%clk 0:02:52]}  h6 {[%clk 0:02:55]} 11. Re1 {[%clk 0:02:50]}  b6 {[%clk 0:02:51]} 12. Qe2 {[%clk 0:02:47]}  Bb7 {[%clk 0:02:45]} 13. h3 {[%clk 0:02:41]}  Nd5 {[%clk 0:02:39]} 14. Qe4 {[%clk 0:02:30]}  f5 {[%clk 0:01:54]} 15. Qxe6+ {[%clk 0:02:29]}  Kh8 {[%clk 0:01:52]} 16. Bxh6 {[%clk 0:01:56]}  Rf6 {[%clk 0:01:50]} 17. Bxg7+ {[%clk 0:01:45]}  Kxg7 {[%clk 0:01:48]} 18. Ng5 {[%clk 0:01:24]}  Rxe6 {[%clk 0:01:03]} 19. Nxe6+ {[%clk 0:01:23]}  Kf6 {[%clk 0:01:03]} 20. Nxd8 {[%clk 0:01:23]}  Rxd8 {[%clk 0:01:04]} 21. c3 {[%clk 0:01:15]}  Nf4 {[%clk 0:01:03]} 22. Bf1 {[%clk 0:01:13]}  Bxg2 {[%clk 0:00:46]} 23. Bxg2 {[%clk 0:01:10]}  Rg8 {[%clk 0:00:46]} 24. Kf1 {[%clk 0:01:02]}  Rxg2 {[%clk 0:00:45]} 25. Re3 {[%clk 0:01:02]}  Rh2 {[%clk 0:00:40]} 26. Kg1 {[%clk 0:00:53]}  Nxh3+ {[%clk 0:00:36]} 27. Rxh3 {[%clk 0:00:50]}  Rxh3 {[%clk 0:00:36]} 28. Re1 {[%clk 0:00:48]}  Rd3 {[%clk 0:00:33]} 29. Re2 {[%clk 0:00:47]}  Bf4 {[%clk 0:00:29]} 30. Kg2 {[%clk 0:00:45]}  Rd2 {[%clk 0:00:27]} 31. Re8 {[%clk 0:00:45]}  Rxb2 {[%clk 0:00:26]} 32. Kf3 {[%clk 0:00:46]}  Bd6 {[%clk 0:00:24]} 33. a4 {[%clk 0:00:42]}  Rb3 {[%clk 0:00:22]} 34. Re3 {[%clk 0:00:41]}  c5 {[%clk 0:00:19]} 35. dxc5 {[%clk 0:00:40]}  Bxc5 {[%clk 0:00:20]} 36. Rd3 {[%clk 0:00:40]}  Ke5 {[%clk 0:00:20]} 37. Kg3 {[%clk 0:00:31]}  Rb2 {[%clk 0:00:20]} 38. f4+ {[%clk 0:00:31]}  Ke4 {[%clk 0:00:20]} 39. Rd7 {[%clk 0:00:28]}  Rb3 {[%clk 0:00:18]} 40. Rxa7 {[%clk 0:00:26]}  Rxc3+ {[%clk 0:00:18]} 41. Kh4 {[%clk 0:00:19]}  Kxf4 {[%clk 0:00:19]} 42. a5 {[%clk 0:00:17]}  Bf2+ {[%clk 0:00:19]} 43. Kh5 {[%clk 0:00:16]}  bxa5 {[%clk 0:00:17]} 44. Rxa5 {[%clk 0:00:16]}  Rh3+ {[%clk 0:00:14]} 45. Kg6 {[%clk 0:00:15]}  Rg3+ {[%clk 0:00:15]} 46. Kf6 {[%clk 0:00:15]}  Kg4 {[%clk 0:00:08]} 47. Ke6 {[%clk 0:00:12]}  f4 {[%clk 0:00:07]} 48. Ra4 {[%clk 0:00:11]}  Kf3 {[%clk 0:00:07]} 49. Kf5 {[%clk 0:00:11]}  Rg4 {[%clk 0:00:06]} 50. Ra3+ {[%clk 0:00:10]}  Be3 {[%clk 0:00:07]} 51. Rb3 {[%clk 0:00:09]}  Kg3 {[%clk 0:00:07]} 52. Rc3 {[%clk 0:00:07]}  Rh4 {[%clk 0:00:08]} 53. Kg5 {[%clk 0:00:06]}  Rh2 {[%clk 0:00:09]} 54. Rc1 {[%clk 0:00:05]}  Re2 {[%clk 0:00:09]} 55. Rf1 {[%clk 0:00:04]}  f3+ {[%clk 0:00:09]} 56. Kf5 {[%clk 0:00:04]}  Rf2 {[%clk 0:00:09]} 57. Rh1 {[%clk 0:00:04]}  Rg2 {[%clk 0:00:09]} 58. Rh8 {[%clk 0:00:04]}  f2 {[%clk 0:00:09]} 59. Rg8+ {[%clk 0:00:05]}  Kh2 {[%clk 0:00:09]} 60. Rh8+ {[%clk 0:00:05]}  Kg1 {[%clk 0:00:10]} 0-1


[Site "https://www.chess.com"]

[Event "Titled Tuesday Blitz June 6 Late 2023"]
[White "Kostiukov, Alexandr"]
[Black "Hartikainen, Jarmo"]
[WhiteFideId "14108100"]
[BlackFideId "503134"]
[WhiteElo "2202"]
[BlackElo "2129"]
[Result "1-0"]
[Round "9"]
[TimeControl "180+2"]
[Date "2023.06.07"]
[WhiteClock "0:00:12"]
[BlackClock "0:00:08"]
[Board "107"]

1. g3 {[%clk 0:02:55]}  g6 {[%clk 0:02:58]} 2. Bg2 {[%clk 0:02:55]}  Bg7 {[%clk 0:02:59]} 3. Nf3 {[%clk 0:02:53]}  Nf6 {[%clk 0:02:59]} 4. c4 {[%clk 0:02:53]}  c5 {[%clk 0:02:58]} 5. O-O {[%clk 0:02:53]}  O-O {[%clk 0:02:58]} 6. d4 {[%clk 0:02:54]}  d5 {[%clk 0:02:58]} 7. dxc5 {[%clk 0:02:50]}  dxc4 {[%clk 0:02:58]} 8. Qa4 {[%clk 0:02:50]}  Qc7 {[%clk 0:02:38]} 9. Qxc4 {[%clk 0:02:43]}  Be6 {[%clk 0:02:24]} 10. Qh4 {[%clk 0:02:36]}  Qxc5 {[%clk 0:02:20]} 11. Nc3 {[%clk 0:02:15]}  Qh5 {[%clk 0:02:10]} 12. Qxh5 {[%clk 0:02:09]}  Nxh5 {[%clk 0:02:09]} 13. Ng5 {[%clk 0:02:04]}  Nc6 {[%clk 0:01:50]} 14. Nxe6 {[%clk 0:01:57]}  fxe6 {[%clk 0:01:51]} 15. Bh3 {[%clk 0:01:39]}  e5 {[%clk 0:01:39]} 16. Bg5 {[%clk 0:01:13]}  h6 {[%clk 0:01:35]} 17. Be3 {[%clk 0:01:12]}  Rad8 {[%clk 0:01:28]} 18. Rfd1 {[%clk 0:01:08]}  Nd4 {[%clk 0:01:21]} 19. Rac1 {[%clk 0:00:52]}  a6 {[%clk 0:01:16]} 20. Kf1 {[%clk 0:00:48]}  Nf6 {[%clk 0:01:06]} 21. Ke1 {[%clk 0:00:41]}  Kh7 {[%clk 0:01:03]} 22. Na4 {[%clk 0:00:21]}  Nd5 {[%clk 0:00:43]} 23. Bxd4 {[%clk 0:00:20]}  exd4 {[%clk 0:00:42]} 24. Nc5 {[%clk 0:00:21]}  d3 {[%clk 0:00:19]} 25. Rxd3 {[%clk 0:00:15]}  Rd6 {[%clk 0:00:15]} 26. Ne6 {[%clk 0:00:13]}  Rf6 {[%clk 0:00:12]} 27. Nxg7 {[%clk 0:00:09]}  Kxg7 {[%clk 0:00:13]} 28. Rcd1 {[%clk 0:00:10]}  e6 {[%clk 0:00:12]} 29. e4 {[%clk 0:00:08]}  Nb4 {[%clk 0:00:08]} 30. Rxd6 {[%clk 0:00:08]}  Nc2+ {[%clk 0:00:09]} 31. Ke2 {[%clk 0:00:07]}  Nb4 {[%clk 0:00:10]} 32. Rxe6 {[%clk 0:00:07]}  Nc6 {[%clk 0:00:10]} 33. Rxf6 {[%clk 0:00:06]}  Kxf6 {[%clk 0:00:11]} 34. Rd5 {[%clk 0:00:06]}  Ne7 {[%clk 0:00:10]} 35. Rd6+ {[%clk 0:00:06]}  Kf7 {[%clk 0:00:10]} 36. Rd7 {[%clk 0:00:06]}  Kf6 {[%clk 0:00:09]} 37. Rxb7 {[%clk 0:00:07]}  Nc6 {[%clk 0:00:10]} 38. Rb6 {[%clk 0:00:07]}  Ke5 {[%clk 0:00:09]} 39. Rxc6 {[%clk 0:00:08]}  Kxe4 {[%clk 0:00:10]} 40. Bg2+ {[%clk 0:00:08]}  Kd4 {[%clk 0:00:10]} 41. f4 {[%clk 0:00:09]}  a5 {[%clk 0:00:10]} 42. Rxg6 {[%clk 0:00:10]}  Kc5 {[%clk 0:00:09]} 43. Rxh6 {[%clk 0:00:10]}  a4 {[%clk 0:00:09]} 44. Ra6 {[%clk 0:00:10]}  a3 {[%clk 0:00:09]} 45. Rxa3 {[%clk 0:00:10]}  Kd4 {[%clk 0:00:10]} 46. Rd3+ {[%clk 0:00:10]}  Kc4 {[%clk 0:00:10]} 47. f5 {[%clk 0:00:10]}  Kc5 {[%clk 0:00:09]} 48. f6 {[%clk 0:00:11]}  Kb6 {[%clk 0:00:08]} 49. f7 {[%clk 0:00:12]}  Kc7 {[%clk 0:00:08]} 50. f8=Q {[%clk 0:00:12]} 1-0


[Site "https://www.chess.com"]

[Event "Titled Tuesday Blitz June 6 Late 2023"]
[White "Ricaurte Lopez, Juan Carlos"]
[Black "Ogreberbere"]
[WhiteFideId "3600327"]
[WhiteElo "2200"]
[BlackElo "2182"]
[Result "0-1"]
[Round "9"]
[TimeControl "180+2"]
[Date "2023.06.07"]
[WhiteClock "0:00:02"]
[BlackClock "0:00:06"]
[Board "109"]

1. e4 {[%clk 0:02:57]}  e6 {[%clk 0:02:59]} 2. d4 {[%clk 0:02:56]}  d5 {[%clk 0:02:59]} 3. exd5 {[%clk 0:02:56]}  exd5 {[%clk 0:02:59]} 4. Nf3 {[%clk 0:02:56]}  Nc6 {[%clk 0:02:57]} 5. Bb5 {[%clk 0:02:53]}  Bd6 {[%clk 0:02:56]} 6. O-O {[%clk 0:02:49]}  Ne7 {[%clk 0:02:56]} 7. c4 {[%clk 0:02:42]}  dxc4 {[%clk 0:02:52]} 8. Re1 {[%clk 0:02:35]}  O-O {[%clk 0:02:46]} 9. h3 {[%clk 0:02:27]}  Be6 {[%clk 0:02:36]} 10. Nc3 {[%clk 0:02:24]}  a6 {[%clk 0:02:35]} 11. Bxc6 {[%clk 0:02:08]}  bxc6 {[%clk 0:02:31]} 12. Bg5 {[%clk 0:01:59]}  h6 {[%clk 0:02:24]} 13. Bh4 {[%clk 0:01:57]}  Qd7 {[%clk 0:02:21]} 14. Ne5 {[%clk 0:01:38]}  Bxe5 {[%clk 0:02:14]} 15. dxe5 {[%clk 0:01:36]}  Qxd1 {[%clk 0:02:11]} 16. Raxd1 {[%clk 0:01:34]}  Nf5 {[%clk 0:02:10]} 17. Re4 {[%clk 0:01:11]}  Nxh4 {[%clk 0:02:05]} 18. Rxh4 {[%clk 0:01:09]}  Rab8 {[%clk 0:02:05]} 19. Rd2 {[%clk 0:00:33]}  Rfd8 {[%clk 0:02:04]} 20. Re2 {[%clk 0:00:30]}  Rd3 {[%clk 0:01:51]} 21. Rf4 {[%clk 0:00:24]}  Rbd8 {[%clk 0:01:49]} 22. Kh2 {[%clk 0:00:20]}  Rd2 {[%clk 0:01:49]} 23. Rfe4 {[%clk 0:00:20]}  Kf8 {[%clk 0:01:29]} 24. Kg3 {[%clk 0:00:17]}  Ke7 {[%clk 0:01:25]} 25. f3 {[%clk 0:00:15]}  R8d3 {[%clk 0:01:17]} 26. Kf2 {[%clk 0:00:15]}  Bd5 {[%clk 0:01:13]} 27. Re3 {[%clk 0:00:15]}  g5 {[%clk 0:00:57]} 28. Na4 {[%clk 0:00:14]}  h5 {[%clk 0:00:45]} 29. Nc5 {[%clk 0:00:12]}  Rxe2+ {[%clk 0:00:43]} 30. Kxe2 {[%clk 0:00:11]}  Rxe3+ {[%clk 0:00:37]} 31. Kxe3 {[%clk 0:00:10]}  a5 {[%clk 0:00:36]} 32. g4 {[%clk 0:00:10]}  hxg4 {[%clk 0:00:31]} 33. hxg4 {[%clk 0:00:10]}  f6 {[%clk 0:00:30]} 34. exf6+ {[%clk 0:00:09]}  Kxf6 {[%clk 0:00:30]} 35. f4 {[%clk 0:00:09]}  gxf4+ {[%clk 0:00:29]} 36. Kxf4 {[%clk 0:00:09]}  c3 {[%clk 0:00:25]} 37. g5+ {[%clk 0:00:09]}  Kg6 {[%clk 0:00:21]} 38. bxc3 {[%clk 0:00:09]}  Bxa2 {[%clk 0:00:21]} 39. Nd7 {[%clk 0:00:07]}  Bb1 {[%clk 0:00:17]} 40. Ne5+ {[%clk 0:00:06]}  Kg7 {[%clk 0:00:15]} 41. Nxc6 {[%clk 0:00:06]}  a4 {[%clk 0:00:15]} 42. Nb4 {[%clk 0:00:05]}  a3 {[%clk 0:00:15]} 43. Ke5 {[%clk 0:00:05]}  a2 {[%clk 0:00:12]} 44. Nxa2 {[%clk 0:00:04]}  Bxa2 {[%clk 0:00:12]} 45. Kd4 {[%clk 0:00:04]}  Be6 {[%clk 0:00:09]} 46. Kc5 {[%clk 0:00:04]}  Bd7 {[%clk 0:00:08]} 47. Kd5 {[%clk 0:00:03]}  Kg6 {[%clk 0:00:08]} 48. Ke5 {[%clk 0:00:01]}  Kxg5 {[%clk 0:00:07]} 49. c4 {[%clk 0:00:02]}  Kg6 {[%clk 0:00:07]} 50. c5 {[%clk 0:00:02]}  Kf7 {[%clk 0:00:07]} 51. Kd5 {[%clk 0:00:01]}  Ke7 {[%clk 0:00:07]} 52. Ke5 {[%clk 0:00:02]}  Bc6 {[%clk 0:00:06]} 0-1


[Site "https://www.chess.com"]

[Event "Titled Tuesday Blitz June 6 Late 2023"]
[White "Mikhalsky, Vladimir"]
[Black "Brown, Raehanna"]
[WhiteFideId "14144352"]
[BlackFideId "7402740"]
[WhiteElo "2236"]
[BlackElo "1655"]
[Result "1-0"]
[Round "9"]
[TimeControl "180+2"]
[Date "2023.06.07"]
[WhiteClock "0:00:14"]
[BlackClock "0:00:04"]
[Board "110"]

1. d4 {[%clk 0:03:00]}  Nf6 {[%clk 0:02:58]} 2. c4 {[%clk 0:03:00]}  g6 {[%clk 0:02:58]} 3. f3 {[%clk 0:02:59]}  Bg7 {[%clk 0:02:58]} 4. e4 {[%clk 0:03:00]}  d6 {[%clk 0:02:57]} 5. Nc3 {[%clk 0:03:00]}  O-O {[%clk 0:02:57]} 6. Be3 {[%clk 0:03:01]}  Nbd7 {[%clk 0:02:56]} 7. Qd2 {[%clk 0:03:00]}  c5 {[%clk 0:02:55]} 8. d5 {[%clk 0:02:57]}  a6 {[%clk 0:02:55]} 9. g4 {[%clk 0:02:53]}  b5 {[%clk 0:02:53]} 10. h4 {[%clk 0:02:52]}  bxc4 {[%clk 0:02:43]} 11. h5 {[%clk 0:02:51]}  Ne5 {[%clk 0:02:38]} 12. Bh6 {[%clk 0:02:40]}  Qb6 {[%clk 0:02:18]} 13. hxg6 {[%clk 0:02:34]}  fxg6 {[%clk 0:02:15]} 14. Bxg7 {[%clk 0:02:32]}  Kxg7 {[%clk 0:02:15]} 15. O-O-O {[%clk 0:02:27]}  Rf7 {[%clk 0:02:03]} 16. f4 {[%clk 0:02:06]}  Nexg4 {[%clk 0:01:57]} 17. Nf3 {[%clk 0:02:05]}  Rb8 {[%clk 0:01:48]} 18. e5 {[%clk 0:01:52]}  Ne8 {[%clk 0:01:35]} 19. Ng5 {[%clk 0:01:35]}  Rxf4 {[%clk 0:00:40]} 20. Rxh7+ {[%clk 0:01:33]}  Kg8 {[%clk 0:00:39]} 21. Rxe7 {[%clk 0:01:33]}  Rf2 {[%clk 0:00:36]} 22. Rxe8+ {[%clk 0:01:31]}  Kg7 {[%clk 0:00:35]} 23. Be2 {[%clk 0:01:16]}  Nxe5 {[%clk 0:00:20]} 24. Rh1 {[%clk 0:01:14]}  Nd3+ {[%clk 0:00:19]} 25. Bxd3 {[%clk 0:00:58]}  Rxd2 {[%clk 0:00:18]} 26. Rh7+ {[%clk 0:00:50]}  Kf6 {[%clk 0:00:19]} 27. Nge4+ {[%clk 0:00:21]}  Kf5 {[%clk 0:00:18]} 28. Nxd6+ {[%clk 0:00:22]}  Kg4 {[%clk 0:00:16]} 29. Nxc4 {[%clk 0:00:21]}  Qf6 {[%clk 0:00:11]} 30. Nxd2 {[%clk 0:00:20]}  Qd4 {[%clk 0:00:10]} 31. Be2+ {[%clk 0:00:18]}  Kg5 {[%clk 0:00:10]} 32. Nde4+ {[%clk 0:00:17]}  Kf4 {[%clk 0:00:09]} 33. Rf7+ {[%clk 0:00:16]}  Ke3 {[%clk 0:00:09]} 34. Nxc5+ {[%clk 0:00:15]}  Be6 {[%clk 0:00:06]} 35. Rxe6+ {[%clk 0:00:14]}  Qe4 {[%clk 0:00:04]} 36. Rxe4# {[%clk 0:00:14]} 1-0


[Site "https://www.chess.com"]

[Event "Titled Tuesday Blitz June 6 Late 2023"]
[White "campochess"]
[Black "Magallanes, Rey Jomar"]
[BlackFideId "5205948"]
[WhiteElo "2152"]
[BlackElo "2280"]
[Result "1-0"]
[Round "9"]
[TimeControl "180+2"]
[Date "2023.06.07"]
[WhiteClock "0:00:50"]
[BlackClock "0:00:16"]
[Board "111"]

1. Nf3 {[%clk 0:02:59]}  d5 {[%clk 0:02:59]} 2. b3 {[%clk 0:02:59]}  Nf6 {[%clk 0:02:59]} 3. Bb2 {[%clk 0:02:59]}  e6 {[%clk 0:03:00]} 4. g3 {[%clk 0:02:58]}  Be7 {[%clk 0:03:00]} 5. Bg2 {[%clk 0:02:58]}  O-O {[%clk 0:03:01]} 6. O-O {[%clk 0:02:58]}  c5 {[%clk 0:03:01]} 7. c4 {[%clk 0:02:58]}  Nc6 {[%clk 0:03:01]} 8. cxd5 {[%clk 0:02:57]}  exd5 {[%clk 0:03:02]} 9. Ne5 {[%clk 0:02:57]}  Nxe5 {[%clk 0:03:01]} 10. Bxe5 {[%clk 0:02:56]}  Be6 {[%clk 0:03:02]} 11. d4 {[%clk 0:02:53]}  Rc8 {[%clk 0:03:00]} 12. dxc5 {[%clk 0:02:50]}  Bxc5 {[%clk 0:03:00]} 13. Nd2 {[%clk 0:02:50]}  Bd6 {[%clk 0:02:58]} 14. Nf3 {[%clk 0:02:49]}  Bxe5 {[%clk 0:02:58]} 15. Nxe5 {[%clk 0:02:49]}  Qd6 {[%clk 0:02:58]} 16. Nd3 {[%clk 0:02:48]}  Rfd8 {[%clk 0:02:56]} 17. Qd2 {[%clk 0:02:48]}  Nd7 {[%clk 0:02:52]} 18. Rac1 {[%clk 0:02:46]}  Ne5 {[%clk 0:02:50]} 19. Nf4 {[%clk 0:02:45]}  Rxc1 {[%clk 0:02:39]} 20. Rxc1 {[%clk 0:02:43]}  Nc6 {[%clk 0:02:38]} 21. e4 {[%clk 0:02:37]}  d4 {[%clk 0:02:31]} 22. Nd5 {[%clk 0:02:35]}  f5 {[%clk 0:02:03]} 23. Nf4 {[%clk 0:02:32]}  Bd7 {[%clk 0:01:54]} 24. exf5 {[%clk 0:02:27]}  Bxf5 {[%clk 0:01:55]} 25. Re1 {[%clk 0:02:17]}  Ne5 {[%clk 0:01:52]} 26. Qa5 {[%clk 0:02:14]}  Re8 {[%clk 0:01:46]} 27. Qb5 {[%clk 0:02:07]}  Qe7 {[%clk 0:01:43]} 28. Kh1 {[%clk 0:01:58]}  Qd7 {[%clk 0:01:26]} 29. Qxd7 {[%clk 0:01:48]}  Bxd7 {[%clk 0:01:25]} 30. Bxb7 {[%clk 0:01:48]}  Kf8 {[%clk 0:01:20]} 31. Rd1 {[%clk 0:01:42]}  Rb8 {[%clk 0:01:20]} 32. Be4 {[%clk 0:01:40]}  Rb4 {[%clk 0:01:10]} 33. Nd5 {[%clk 0:01:37]}  Rb8 {[%clk 0:01:00]} 34. Rxd4 {[%clk 0:01:37]}  Bg4 {[%clk 0:00:56]} 35. Kg2 {[%clk 0:01:32]}  Rc8 {[%clk 0:00:51]} 36. f4 {[%clk 0:01:29]}  Bf3+ {[%clk 0:00:45]} 37. Bxf3 {[%clk 0:01:19]}  Rc2+ {[%clk 0:00:44]} 38. Kh3 {[%clk 0:01:19]}  Rxh2+ {[%clk 0:00:41]} 39. Kxh2 {[%clk 0:01:17]}  Nxf3+ {[%clk 0:00:41]} 40. Kg2 {[%clk 0:01:17]}  Nxd4 {[%clk 0:00:41]} 41. Kf2 {[%clk 0:01:12]}  Ke8 {[%clk 0:00:41]} 42. g4 {[%clk 0:01:12]}  Kd7 {[%clk 0:00:34]} 43. Ke3 {[%clk 0:01:12]}  Ne6 {[%clk 0:00:31]} 44. f5 {[%clk 0:01:09]}  Nd8 {[%clk 0:00:26]} 45. f6 {[%clk 0:01:09]}  gxf6 {[%clk 0:00:25]} 46. Nxf6+ {[%clk 0:01:08]}  Ke6 {[%clk 0:00:25]} 47. Nxh7 {[%clk 0:01:07]}  Kf7 {[%clk 0:00:24]} 48. Ng5+ {[%clk 0:01:06]}  Kg6 {[%clk 0:00:25]} 49. Ne4 {[%clk 0:01:06]}  Ne6 {[%clk 0:00:25]} 50. b4 {[%clk 0:01:03]}  Nc7 {[%clk 0:00:24]} 51. Kd4 {[%clk 0:00:58]}  Nb5+ {[%clk 0:00:22]} 52. Kc5 {[%clk 0:00:57]}  Na3 {[%clk 0:00:20]} 53. b5 {[%clk 0:00:56]}  Nc2 {[%clk 0:00:18]} 54. a4 {[%clk 0:00:55]}  Ne3 {[%clk 0:00:17]} 55. a5 {[%clk 0:00:50]}  Nxg4 {[%clk 0:00:17]} 56. b6 {[%clk 0:00:51]}  axb6+ {[%clk 0:00:17]} 57. Kxb6 {[%clk 0:00:51]}  Ne5 {[%clk 0:00:18]} 58. a6 {[%clk 0:00:50]}  Nd7+ {[%clk 0:00:18]} 59. Kc7 {[%clk 0:00:50]}  Nc5 {[%clk 0:00:18]} 60. Nxc5 {[%clk 0:00:50]}  Kf6 {[%clk 0:00:16]} 61. a7 {[%clk 0:00:50]} 1-0


[Site "https://www.chess.com"]